Workbook

Sheet гимн 3 (hidden)
A1: Расшифровка к бюджету на 2022 год по МБДОУ "Детский сад №38 комбинированного вида "Кировского района
A3: Наименование | B3: Сумма | C3: ДКР 303 (бюджет, род плата) | D3: ДКР 304 | E3: ДКР 308
A4: П.221001, услуги связи | B4: =C4+D4+E4 -> 0.00 | C4: =C5+C6+C7+C8 -> 0.00 | D4: =D5+D6+D7+D8 -> 0.00 | E4: 0.00
A5: в т.ч. телефонная связь | B5: =C5+D5+E5 -> 0.00
A6: в т.ч. Интернет | B6: =C6+D6+E6 -> 0.00
A7: в т.ч. сотовая связь | B7: 0.00
A8: в т.ч. плата за предоставление доступа (разовый платеж) | B8: 0.00
A9: П.225002, всего | B9: =B10+B11+B12+B13 -> 0.00 | C9: =C10+C11+C12+C13 -> 0.00 | D9: =D10+D11+D12+D13 -> 0.00 | E9: 0.00
A10: в т.ч. обслуживание конт площадки | B10: =C10+D10+E10 -> 0.00
A11: в т.ч.сброс снега | B11: =C11+D11+E11 -> 0.00
A12: в т.ч.дератиз, дезинсекц | B12: 0.00
A13: в т.ч.обработка от комаров | B13: =C13+D13+E13 -> 0.00
A15: П.223017, вывоз мусора | B15: =C15+D15+E15 -> 0.00
A16: П. 223098 ЖБО | B16: =C16+D16+E16 -> 0.00
A17: П.225003, опрессовка | B17: =C17+D17+E17 -> 0.00
A18: П.225007, текущ ремонт | B18: =C18+D18+E18 -> 0.00
A19: П.225010 заправка картриджа | B19: =C19+D19+E19 -> 0.00
A21: П.225015 ВСЕГО | B21: =B22+B23+B24+B25+B26+B27+B28 -> 0.00 | C21: =C22+C23+C24+C25+C26+C27+C28 -> 0.00 | D21: 0.00 | E21: 0.00
A22: в т.ч. поверка весов | B22: =C22+D22+E22 -> 0.00
A23: в т.ч. ремонт оборудования | B23: =C23+D23+E23 -> 0.00
A24: в т.ч. технич.обслуживание узлов погодного регулирования и теплообменников | B24: 0.00
A25: в т.ч.техническое обслуживание венткамеры | B25: 0.00
A26: в т.ч.обслуживание эл.платформы для детей с ОВЗ | B26: 0.00
A27: в т.ч.обслуживание эл.лифта и подъемника | B27: 0.00
A28: в т.ч.обслуживание бассейна | B28: 0.00
A30: П 225016 камерная обработка | B30: =C30+D30+E30 -> 0.00
A31: П.225035 техн.обслуживание приборов учета | B31: =C31+D31+E31 -> 0.00
A32: П. 225036 зарядка огрнетушителей | B32: 0.00
A34: П225098 ВСЕГО | B34: =B35+B36+B37+B38 -> 0.00 | C34: =C35+C36+C37+C38 -> 0.00 | D34: =D35+D36+D37+D38 -> 0.00 | E34: 0.00
A35: в т.ч проверка пожарных рукавов | B35: =C35+D35+E35 -> 0.00
A36: в т.ч. техническое освидетельствование лифта | B36: =C36+D36+E36 -> 0.00
A37: в т.ч.обслуживание БМК | B37: 0.00
A38: в т.ч.эксплуатационные расходы | B38: 0.00
A40: П.226001, подписка | B40: =C40+D40+E40 -> 0.00
A42: П.226006, всего | B42: =B43+B44+B45+B46 -> 0.00 | C42: =C43+C44+C45+C46 -> 0.00 | D42: 0.00 | E42: 0.00
A43: в т.ч. курсы по гигиеническому обучению работников | B43: =C43+D43+E43 -> 0.00
A44: в т.ч. аттестация руководителей | B44: =C44+D44+E44 -> 0.00
A45: в т.ч. курсы по теплохозяйству, электрохозяйству | B45: 0.00
A46: в т.ч. Курсы по охране труда | B46: 0.00
A48: П.226098, всего | B48: =B49+B50+B51+B52+B53+B54 -> 0.00 | C48: =C49+C50+C51+C52+C53+C54 -> 0.00 | D48: =D49+D50+D51+D52+D53+D54 -> 0.00 | E48: 0.00
A49: в т.ч. обслуживание автоматизированного учета элэнергии | B49: =C49+D49+E49 -> 0.00
A50: в т.ч. Проф риски | B50: =C50+D50+E50 -> 0.00
A51: в т.ч. Проверка СИЗ | B51: 0.00
A52: в т.ч.специальная оценка условий труда | B52: 0.00
A53: в т.ч.лабораторные исследования и производственный контроль | B53: 0.00
A54: в т.ч.прочие расходы | B54: 0.00
A55: П.226027 изготовление тех. паспорта | B55: =C55+D55+E55 -> 0.00
A56: П.227001 услуги по страхованию лифта | B56: =C56+D56+E56 -> 0.00
A58: П.310098, приобретение основных средств | B58: =C58+D58+E58 -> 0.00
A60: П.341006, медикаменты | B60: =C60+D60+E60 -> 0.00
A62: П.344098, стройматериалы | B62: =C62+D62+E62 -> 0.00
A64: П.345002, приобретение мягкого инвентаря | B64: =C64+D64+E64 -> 0.00
A66: П.346004, закупка материалов для учебного процесса | B66: =C66+D66+E66 -> 0.00
A68: П.346017, приобретение хоз, канц товаров | B68: =C68+D68+E68 -> 0.00
A70: П.346098, Прочие расходы по увеличению стоимости матер.запасов | B70: =B71+B72+B73 -> 0.00 | C70: =C71+C72+C73 -> 0.00 | D70: =D71+D72+D73 -> 0.00 | E70: 0.00
A71: в т.ч. Песчано-соляная смесь | B71: =C71+D71+E71 -> 0.00
A72: в т.ч. прочие расходы по увеличению стоимости мат запасов | B72: =C72+D72+E72 -> 0.00
A73: в т.ч. Замена песка в песочницах | B73: =C73+D73+E73 -> 0.00
A74: Всего по учреждению на 2022 год | B74: =C74+D74+E74 -> 0.00 | C74: =C4+C9+C15+C17+C18+C19+C21+C31+C34+C40+C42+C48+C56+C58+C60+C68+C70 -> 0.00 | D74: =D4+D9+D15+D17+D18+D19+D21+D31+D34+D40+D42+D48+D56+D58+D60+D68+D70 -> 0.00 | E74: 0.00

Sheet 88
A1: Расшифровка к бюджету на 2023 год по МАДОУ "Детский сад №88 " Кировского района
A3: Наименование | B3: Сумма | C3: ДКР 303 (бюджет, род плата) | D3: ДКР 304 | E3: ДКР 308
A4: П.221001, услуги связи | B4: =C4+D4+E4 -> 32,240.00 | C4: =C5+C6+C7+C8 -> 0.00 | D4: =D5+D6+D7+D8 -> 32240.00 | E4: =E5+E6+E7+E8 -> 0.00
A5: в т.ч. телефонная связь | B5: =C5+D5+E5 -> 20,000.00 | D5: 20000.00
A6: в т.ч. Интернет | B6: =C6+D6+E6 -> 12,240.00 | D6: 12240.00
A7: в т.ч. сотовая связь | B7: 0.00
A8: в т.ч. плата за предоставление доступа (разовый платеж) | B8: 0.00
A9: П.225002, всего | B9: =B10+B11+B12+B13 -> 38,857.39 | C9: =C10+C11+C12+C13 -> 0.00 | D9: =D10+D11+D12+D13 -> 38,857.39 | E9: 0.00
A10: в т.ч. обслуживание конт площадки | B10: =C10+D10+E10 -> 0.00
A11: в т.ч.сброс снега | B11: =C11+D11+E11 -> 15,000.00 | D11: 15000.00
A12: в т.ч.дератиз, дезинсекц | B12: 15,498.60 | D12: 15498.60
A13: в т.ч.обработка от комаров | B13: =C13+D13+E13 -> 8,358.79 | D13: 8358.79
A15: П.223017, вывоз мусора | B15: =C15+D15+E15 -> 115,652.64 | D15: 115652.64
A16: П. 223098 ЖБО | B16: =C16+D16+E16 -> 0.00
A17: П.225003, опрессовка | B17: =C17+D17+E17 -> 54,010.44 | D17: 54010.44
A18: П.225007, текущ ремонт | B18: =C18+D18+E18 -> 70,448.40 | D18: 70448.40
A19: П.225010 заправка картриджа | B19: =C19+D19+E19 -> 3,000.00 | D19: 3000.00
A21: П.225015 ВСЕГО | B21: =B22+B23+B24+B25+B26+B27+B28 -> 68,585.52 | C21: =C22+C23+C24+C25+C26+C27+C28 -> 0.00 | D21: 68,585.52 | E21: 0.00
A22: в т.ч. поверка весов | B22: =C22+D22+E22 -> 10,000.00 | D22: 10000.00
A23: в т.ч. ремонт оборудования | B23: =C23+D23+E23 -> 35,000.00 | D23: 35000.00
A24: в т.ч. технич.обслуживание узлов погодного регулирования и теплообменников | B24: 23,585.52 | D24: 23585.52
A25: в т.ч.техническое обслуживание венткамеры | B25: 0.00
A26: в т.ч.обслуживание эл.платформы для детей с ОВЗ | B26: 0.00
A27: в т.ч.обслуживание эл.лифта и подъемника | B27: 0.00
A28: в т.ч.обслуживание бассейна | B28: 0.00
A30: П 225016 камерная обработка | B30: =C30+D30+E30 -> 0.00
A31: П.225035 техн.обслуживание приборов учета | B31: =C31+D31+E31 -> 31,548.48 | D31: 31548.48
A32: П. 225036 зарядка огрнетушителей | B32: 0.00
A34: П225098 ВСЕГО | B34: =B35+B36+B37+B38 -> 10,000.00 | C34: =C35+C36+C37+C38 -> 0.00 | D34: 10,000.00 | E34: 0.00
A35: в т.ч проверка пожарных рукавов | B35: =C35+D35+E35 -> 7,000.00 | D35: 7000.00
A36: в т.ч. обследование тех.состояния вент.системы | B36: =C36+D36+E36 -> 0.00
A37: в т.ч.эксплуатационные расходы | B37: 0.00
A38: в т.ч. Поверка СИЗ | B38: =C38+D38+E38 -> 3,000.00 | D38: 3000.00
A39: П.226001, подписка | B39: =C39+D39+E39 -> 5,000.00 | D39: 5000.00
A41: П.226052, всего | B41: =B42+B43+B44+B45 -> 43,100.00 | C41: =C42+C43+C44+C45 -> 0.00 | E41: 0.00
A42: в т.ч. курсы по гигиеническому обучению работников | B42: =C42+D42+E42 -> 27,600.00 | D42: 27600.00
A43: в т.ч. аттестация руководителей | B43: =C43+D43+E43 -> 3,000.00 | D43: 3000.00
A44: в т.ч. курсы по теплохозяйству, электрохозяйству | B44: 8,000.00 | D44: 8000.00
A45: в т.ч. Курсы по охране труда | B45: 4,500.00 | D45: 4500.00
A47: П.226098, всего | B47: =B48+B49+B50+B51+B52 -> 60,652.00 | C47: =C48+C49+C50+C51+C52 -> 0.00 | D47: 60,652.00 | E47: 0.00
A48: в т.ч. обслуживание автоматизированного учета элэнергии | B48: =C48+D48+E48 -> 10,752.00 | D48: 10752.00
A49: в т.ч. Проф риски | B49: =C49+D49+E49 -> 0.00
A50: в т.ч.специальная оценка условий труда | B50: 4,900.00 | D50: 4900.00
A51: в т.ч.лабораторные исследования и производственный контроль | B51: 45,000.00 | D51: 45000.00
A52: в т.ч.прочие расходы | B52: 0.00
A53: П.226027 изготовление тех. паспорта | B53: =C53+D53+E53 -> 0.00
A54: П.227001 услуги по страхованию лифта | B54: =C54+D54+E54 -> 0.00
A56: Н.310099, приобретение основных средств | B56: =C56+D56+E56 -> 90,603.76 | D56: 90603.76
A58: П.341006, медикаменты | B58: =C58+D58+E58 -> 13,547.24 | C58: 13547.24
A60: П.344098, стройматериалы(противопожарные двери) | B60: =C60+D60+E60 -> 0.00
A62: Н.344099, стройматериалы | B62: =C62+D62+E62 -> 11,075.40 | D62: 11075.40
A64: П.345002, приобретение мягкого инвентаря | B64: =C64+D64+E64 -> 53,450.00 | D64: 53450.00
A66: П.346004, закупка материалов для учебного процесса | B66: =C66+D66+E66 -> 48,000.00 | E66: 48000.00
A68: П.346017, приобретение хоз, канц товаров | B68: =C68+D68+E68 -> 60,000.00 | C68: 24992.69 | D68: 35007.31
A70: П.346098, Прочие расходы по увеличению стоимости матер.запасов | B70: =B71+B72+B73 -> 53,678.00 | C70: =C71+C72+C73 -> 0.00 | D70: =D71+D72+D73 -> 53,678.00 | E70: 0.00
A71: в т.ч. Песчано-соляная смесь | B71: =C71+D71+E71 -> 3,678.00 | D71: 3678.00
A72: в т.ч. прочие расходы по увеличению стоимости мат запасов | B72: =C72+D72+E72 -> 20,000.00 | D72: 20000.00
A73: в т.ч. Замена песка в песочницах | B73: =C73+D73+E73 -> 30,000.00 | D73: 30000.00
A74: Н.346099, Прочие расходы по увеличению стоимости матер.запасов | B74: =B75 -> 36,349.30 | C74: =C75 -> 0.00 | D74: 36,349.30 | E74: 0.00
A75: в т.ч. прочие расходы по увеличению стоимости мат запасов | B75: =C75+D75+E75 -> 36,349.30 | D75: 36,349.30
A76: Всего по учреждению на 2023 год | B76: =B4+B9+B15+B17+B18+B19+B21+B30+B31+B32+B34+B39+B41+B47+B53+B54+B56+B58+B60+B62+B64+B66+B68+B70+B74 -> 899,798.57 | C76: =C4+C9+C15+C17+C18+C19+C21+C30+C31+C32+C34+C39+C41+C47+C53+C54+C56+C58+C60+C62+C64+C66+C68+C70+C74 -> 38,539.93 | D76: 770,158.64 | E76: 48,000.00
